[Event "GER-ch Youth-U14 2022"]
[Site "Willingen"]
[Date "2022.06.08"]
[Round "5.22"]
[White "Miller, Elias"]
[Black "Grundmann, Max"]
[Result "1/2-1/2"]
[ECO "D02"]
[WhiteElo "1548"]
[BlackElo "1358"]
[Annotator "NA RC COMBH"]
[PlyCount "95"]
[EventDate "2022.06.05"]
[EventType "swiss"]
[EventRounds "9"]
[EventCountry "GER"]
[SourceTitle "playchess.com"]
[Source "ChessBase"]
[SourceQuality "1"]
[TimeControl "40/4500+30:900+30"]

1. d4 {[%emt 0:00:00]} d5 {[%emt 0:00:00]} 2. Nf3 {[%emt 0:00:00]} Bf5 {[%emt 0:00:00]} 3. c4 {[%emt 0:00:00]} Bxb1 {[%emt 0:00:00]} 4. Rxb1 {[%emt 0:00:00]} e6 {[%emt 0:00:00]} 5. g3 {[%emt 0:00:00]} Bb4+ {[%emt 0:00:00]} 6. Bd2 {[%emt 0:00:00]} Bxd2+ {[%emt 0:00:00]} 7. Nxd2 {[%emt 0:00:00]} dxc4 {[%emt 0:00:00]} 8. Bg2 {[%emt 0:00:00]} c6 {[%emt 0:00:00]} 9. Nxc4 {[%emt 0:00:00]} Nf6 {[%emt 0:00:00]} 10. O-O {[%emt 0:00:00]} O-O {[%emt 0:00:00]} 11. e3 {[%emt 0:00:00]} Nbd7 {[%emt 0:00:00]} 12. Qc2 {[%emt 0:00:00]} Nb6 {[%emt 0:00:00]} 13. Ne5 {[%emt 0:00:00]} Nfd7 {[%emt 0:00:00]} 14. Nd3 {[%emt 0:00:17]} Rc8 {[%emt 0:02:30]} 15. b4 {[%emt 0:00:54]} Qe7 {[%emt 0:02:20]} 16. Nc5 {[%emt 0:10:40]} Rb8 {[%emt 0:05:22]} 17. a4 {[%emt 0:04:31]} Nxc5 {[%emt 0:04:26]} 18. bxc5 {[%emt 0:00:16]} Nd5 {[%emt 0:00:27]} 19. a5 {[%emt 0:01:43]} Qc7 {[%emt 0:02:28]} 20. Qd2 {[%emt 0:10:02]} b6 {[%emt 0:05:15]} 21. axb6 {[%emt 0:01:22]} axb6 {[%emt 0:00:23]} 22. cxb6 {[%emt 0:02:38]} Rxb6 {[%emt 0:00:20]} 23. Rbc1 {[%emt 0:00:49]} Rfb8 {[%emt 0:02:46]} 24. Bxd5 {[%emt 0:02:13]} exd5 {[%emt 0:01:19]} 25. Qa5 {[%emt 0:03:12]} Qb7 {[%emt 0:03:54]} 26. Rc5 {[%emt 0:03:01]} Rb1 {[%emt 0:02:19]} 27. Rcc1 {[%emt 0:05:14]} Rxc1 {[%emt 0:04:01]} 28. Rxc1 {[%emt 0:00:07]} Ra8 {[%emt 0:12:05]} 29. Qc3 {[%emt 0:03:01]} Ra6 {[%emt 0:00:26]} 30. Qc2 {[%emt 0:04:06]} g6 {[%emt 0:01:11]} 31. Qc5 {[%emt 0:02:29]} Rb6 {[%emt 0:01:58]} 32. Rc2 {[%emt 0:00:58]} Qa6 {[%emt 0:01:57]} 33. Kg2 {[%emt 0:02:51]} h5 {[%emt 0:03:28]} 34. Rc3 {[%emt 0:06:42]} Rb1 {[%emt 0:01:00]} 35. Qxc6 {[%emt 0:09:27]} Qf1+ {[%emt 0:00:36]} 36. Kf3 {[%emt 0:00:10]} Qh1+ {[%emt 0:00:12]} 37. Kf4 {[%emt 0:00:19]} Qe4+ {[%emt 0:00:12]} 38. Kg5 {[%emt 0:00:26]} Kh7 {[%emt 0:03:03]} 39. Qd7 {[%emt 0:00:53]} Rb7 40. f3 {[%emt 0:05:00]} Qxf3 {[%emt 0:01:55]} 41. Qc8 {[%emt 0:17:40]} Rb8 {[%emt 0:17:47]} 42. Qd7 {[%emt 0:00:38]} Rd8 {[%emt 0:00:09]} 43. e4 {[%emt 0:03:42]} Qxe4 {[%emt 0:00:09]} 44. Qxf7+ {[%emt 0:00:15]} Kh8 {[%emt 0:01:20]} 45. Qf6+ {[%emt 0:00:33]} Kh7 {[%emt 0:02:29]} 46. Rc7+ {[%emt 0:00:44]} Rd7 {[%emt 0:01:08]} 47. Rxd7+ {[%emt 0:00:13]} Kg8 {[%emt 0:00:15]} 48. Qg7# {[%emt 0:00:10]} 1/2-1/2

[Event "GER-ch Youth-U14 2022"]
[Site "Willingen"]
[Date "2022.06.08"]
[Round "6.1"]
[White "Ermitsch, Magnus"]
[Black "Haubold, Christian Lucas"]
[Result "1-0"]
[ECO "C72"]
[WhiteElo "2222"]
[BlackElo "1921"]
[Annotator "TA"]
[PlyCount "75"]
[EventDate "2022.06.05"]
[EventType "swiss"]
[EventRounds "9"]
[EventCountry "GER"]
[SourceTitle "playchess.com"]
[Source "ChessBase"]
[SourceQuality "1"]
[TimeControl "40/4500+30:900+30"]

{[%evp 12,75,34,25,33,27,42,26,37,24,28,28,29,27,29,32,31,28,68,47,50,7,32,0,29,21,56,64,72,39,58,48,55,40,79,69,97,69,108,98,100,82,155,157,150,152,147,120,122,135,191,186,187,126,258,256,275,155,156,146,539,525,643,635,1043,474]} 1. e4 {[%emt 0:00:00]} e5 {[%emt 0:00:00]} 2. Nf3 {[%emt 0:00:00]} Nc6 {[%emt 0:00:00]} 3. Bb5 {[%emt 0:00:00]} a6 {[%emt 0:00:00]} 4. Ba4 {[%emt 0:00:00]} d6 {[%emt 0:00:00]} 5. O-O {[%emt 0:00:00]} Bd7 {[%emt 0:00:00]} 6. c3 {[%emt 0:00:00]} g6 {[%emt 0:00:00]} 7. d4 {[%emt 0:00:00]} Nf6 {[%emt 0:00:00] C76: Ruy Lopez: Deferred Steinitz: 5 c3 Bd7 6 d4 g6.} 8. h3 {[%emt 0:00:00]} Bg7 {[%emt 0:00:00]} 9. Re1 {[%emt 0:00:00]} O-O {[%emt 0:00:00] White has an edge.} 10. Bc2 {[%emt 0:00:00]} b5 {[%emt 0:00:00]} 11. Nbd2 {[%emt 0:00:00]} Re8 {[%emt 0:00:00]} 12. Nf1 {[%emt 0:00:00]} Na5 {[%emt 0:02:14]} 13. b3 {[%emt 0:00:00] The old main line.} c5 {[%emt 0:00:26]} 14. d5 {[%emt 0:00:00]} Qc7 {[%emt 0:00:59]} 15. Be3 {[%emt 0:00:00] [#]} Nb7 $146 {[%emt 0:01:38]} ({Predecessor:} 15... c4 16. b4 Nb7 17. Qd2 a5 18. a3 Ra6 19. g4 Rea8 {0-1 (62) Bronnikova,E (2239)-Aleksandrov,A (2602) Izhevsk 2012}) 16. Qd2 {[%emt 0:00:00]} a5 {[%emt 0:11:01]} 17. a3 {[%emt 0:00:10]} Rec8 {[%emt 0:03:24]} (17... c4 $5 {[%cal Rc4b3]} 18. b4 Ra6 $11) 18. Rec1 {[%emt 0:01:13]} Nd8 {[%emt 0:04:42]} 19. Ng3 {[%emt 0:06:16]} Ne8 {[%emt 0:10:47]} 20. Kh2 {[%emt 0:08:47]} Qb7 {[%emt 0:04:59]} 21. Rab1 {[%emt 0:11:44]} b4 {[%emt 0:04:55]} 22. cxb4 {[%emt 0:04:02]} cxb4 {[%emt 0:02:20]} 23. axb4 {[%emt 0:02:10]} axb4 {[%emt 0:00:45]} 24. Ne1 {[%emt 0:01:33]} f6 {[%emt 0:13:34]} 25. Bd3 {[%emt 0:02:18]} Nc7 {[%emt 0:04:43]} 26. Nc2 {[%emt 0:00:52]} Rcb8 {[%emt 0:00:58] [#]} (26... Na6 $142) 27. Nxb4 $1 $16 {[%emt 0:00:57][%mdl 512]} Nb5 {[%emt 0:09:12]} 28. Nc2 {[%emt 0:02:13]} Ra2 {[%emt 0:03:19]} 29. Qb4 {[%emt 0:01:44]} Bf8 {[%emt 0:02:18]} 30. Ra1 {[%emt 0:01:54]} Rba8 {[%emt 0:01:28]} (30... Rxa1 $16 {was worth a try.} 31. Rxa1 Nf7) 31. Rxa2 $18 {[%emt 0:03:23]} Rxa2 {[%emt 0:00:08]} 32. Ne1 {[%emt 0:00:38]} (32. Qc4 $18) 32... h5 {[%emt 0:02:20]} (32... Ra8 $16 33. Nf3 Rb8) 33. Nf3 {[%emt 0:00:58]} Be7 {[%emt 0:00:31]} 34. h4 {[%emt 0:01:45]} (34. Nh4 $18 Kf7 35. Rc4) 34... Kf7 {[%emt 0:01:17]} 35. Nd2 {[%emt 0:00:53] aiming for Nc4. White is more active.} Ke8 $2 {[%emt 0:02:02][%mdl 8192] [#]} (35... Nd4 $16 {is more resistant.} 36. Qc3 Nb5 37. Bxb5 Bxb5) 36. Nc4 {[%emt 0:00:28] White is clearly winning.} Ra6 {[%emt 0:00:26]} 37. Na5 {[%emt 0:00:44]} Qa8 {[%emt 0:02:18]} 38. Nc6 {[%emt 0:00:16] Weighted Error Value: White=0.13 (very precise) /Black=0.37} (38. Bxb5 $142 Rxa5 39. Bxd7+ Kxd7 40. Bb6) 1-0

[Event "GER-ch Youth-U14 2022"]
[Site "Willingen"]
[Date "2022.06.08"]
[Round "6.2"]
[White "Deuer, Marius"]
[Black "Hagner, Bennet"]
[Result "1/2-1/2"]
[ECO "E48"]
[WhiteElo "2359"]
[BlackElo "2186"]
[Annotator "TA"]
[PlyCount "82"]
[EventDate "2022.06.05"]
[EventType "swiss"]
[EventRounds "9"]
[EventCountry "GER"]
[SourceTitle "playchess.com"]
[Source "ChessBase"]
[SourceQuality "1"]
[TimeControl "40/4500+30:900+30"]

{[%evp 11,82,2,10,0,0,-2,4,0,0,-9,-14,-22,-10,-14,0,-43,-43,-34,-31,-37,0,0,0,0,6,16,27,0,0,0,-7,0,0,0,-16,0,-25,0,0,-33,-16,-72,0,0,0,0,0,0,0,0,0,0,0,0,0,0,0,0,0,0,0,0,0,0,0,0,0,0,0,0,0,0,0]} 1. c4 {[%emt 0:00:00]} Nf6 {[%emt 0:00:00]} 2. d4 {[%emt 0:00:00]} e6 {[%emt 0:00:00]} 3. Nc3 {[%emt 0:00:00]} Bb4 {[%emt 0:00:00]} 4. e3 {[%emt 0:00:00]} O-O {[%emt 0:00:00]} 5. Bd3 {[%emt 0:00:00]} d5 {[%emt 0:00:00]} 6. cxd5 {[%emt 0:00:00]} exd5 {[%emt 0:00:00]} 7. a3 {[%emt 0:00:00] E48: Nimzo-Indian: Rubinstein: 5 Bd3 d5 including 6 Ne2, but excluding 6 a3.} Bd6 {[%emt 0:00:00]} 8. Qc2 {[%emt 0:00:00]} Na6 {[%emt 0:00:00] [#]} 9. b4 $146 {[%emt 0:00:00]} ({Predecessor:} 9. Nf3 c5 10. dxc5 Nxc5 11. b4 Nxd3+ 12. Qxd3 Bg4 13. Bb2 Rc8 14. Rd1 Bxf3 15. gxf3 {0-1 (39) Durarbayli,V (2638)-Oparin,G (2685) Chess.com INT 2022}) 9... c6 {[%emt 0:00:00]} 10. Nge2 {[%emt 0:00:00]} Nc7 {[%emt 0:00:00]} 11. f3 {[%emt 0:00:03]} a5 {[%emt 0:00:00]} 12. Rb1 {[%emt 0:10:54]} Qe7 {[%emt 0:00:00][%cal Ra5b4]} 13. Qb3 {[%emt 0:15:21]} axb4 {[%emt 0:07:40]} 14. axb4 {[%emt 0:00:10]} Na6 {[%emt 0:00:30][%cal Ra6b4]} (14... Nh5 {is more complex.} 15. b5 Qh4+ 16. Kf1 f5) 15. Na2 {[%emt 0:03:27]} b6 {[%emt 0:18:14]} 16. b5 {[%emt 0:03:09]} cxb5 {[%emt 0:00:19]} 17. Bxb5 {[%emt 0:01:38]} Nc7 {[%emt 0:06:13]} 18. Bd3 {[%emt 0:01:33]} b5 {[%emt 0:01:19]} 19. O-O {[%emt 0:01:32]} Bd7 {[%emt 0:05:01]} 20. Ng3 Bxg3 {[%emt 0:09:51]} 21. hxg3 {[%emt 0:12:37]} Nh5 {[%emt 0:00:03]} 22. Bd2 {[%emt 0:15:00]} Nxg3 {[%emt 0:01:49]} 23. Rfc1 {[%emt 0:00:01]} Rfc8 {[%emt 0:05:44]} 24. Nb4 {[%emt 0:01:26] Against Ra6} Qg5 {[%emt 0:05:35]} 25. Qd1 {[%emt 0:04:52]} Qh4 {[%emt 0:02:28] aiming for ...Be6.} 26. Rc5 {[%emt 0:01:18]} (26. Rc2 $1 $11 {keeps the balance.}) 26... Be6 {[%emt 0:03:15]} (26... g6 $17) 27. Rbc1 $1 $11 {[%emt 0:00:30] The position is equal.} Ne8 {[%emt 0:02:17]} 28. Rxc8 {[%emt 0:02:24]} Rxc8 {[%emt 0:00:02]} 29. Rxc8 {[%emt 0:00:23] Really sharp!} Bxc8 {[%emt 0:00:01]} 30. Qc1 {[%emt 0:00:21]} Bb7 {[%emt 0:11:49]} 31. Bxb5 {[%emt 0:01:36]} Nd6 {[%emt 0:00:03]} 32. Bd3 {[%emt 0:04:23] A strong pair of Bishops.} (32. Qc7 {leads to mate.} Qh1+ 33. Kf2 {[#]} Nde4+ $1 {[%mdl 512]} 34. fxe4 Nxe4+ 35. Kf3 Qh5+ 36. g4 Qh1+ 37. Ke2 Qg2+ 38. Ke1 Qxd2+ 39. Kf1 Qf2#) 32... Qh1+ {[%emt 0:00:07]} 33. Kf2 {[%emt 0:00:04]} Qh4 {[%emt 0:00:06]} 34. Kg1 {[%emt 0:01:58]} g6 {[%emt 0:02:47]} 35. Qc7 {[%emt 0:02:22]} Qh1+ $1 {[%emt 0:00:16]} 36. Kf2 {[%emt 0:00:01]} Qh2 {[%emt 0:00:24][%cal Od6e4] [#] And now ...Nde4+! would win.} 37. Qd8+ {[%emt 0:01:40]} Kg7 {[%emt 0:00:05]} 38. Qe7 {[%emt 0:00:25] Hoping for Qe5+.} Nh1+ {[%emt 0:03:13]} 39. Kf1 $1 {[%emt 0:00:51]} Ng3+ {[%emt 0:01:02]} 40. Kf2 {[%emt 0:00:03] Black must now prevent Qe5+.} Nh1+ {[%emt 0:03:30]} 41. Kf1 $1 {[%emt 0:16:33]} Ng3+ {[%emt 0:00:00] Weighted Error Value: White=0.07 (flawless) /Black=0.05 (flawless)} 1/2-1/2

[Event "GER-ch Youth-U14 2022"]
[Site "Willingen"]
[Date "2022.06.08"]
[Round "6.3"]
[White "Klaska, Philipp Leon"]
[Black "Sreyas Payyappat"]
[Result "1/2-1/2"]
[ECO "B15"]
[WhiteElo "1946"]
[BlackElo "2169"]
[Annotator "TA"]
[PlyCount "117"]
[EventDate "2022.06.05"]
[EventType "swiss"]
[EventRounds "9"]
[EventCountry "GER"]
[SourceTitle "playchess.com"]
[Source "ChessBase"]
[SourceQuality "1"]
[TimeControl "40/4500+30:900+30"]

{[%evp 15,117,18,22,8,39,12,28,8,12,9,9,10,6,0,0,0,0,0,29,26,26,25,49,49,50,45,46,49,43,53,125,121,114,111,149,129,122,133,150,142,171,156,171,169,184,166,192,158,200,153,614,103,153,142,133,142,153,140,175,145,137,91,202,103,112,102,102,102,105,96,219,219,219,219,219,59,59,59,59,59,59,59,95,95,95,59,63,63,95,8,8,8,8,8,230,8,8,0,0,0,8,8,8,8]} 1. e4 {[%emt 0:00:00]} c6 {[%emt 0:00:00]} 2. d4 {[%emt 0:00:00]} d5 {[%emt 0:00:00]} 3. Nc3 {[%emt 0:00:00]} dxe4 {[%emt 0:00:00]} 4. Nxe4 {[%emt 0:00:00]} Nf6 {[%emt 0:00:00]} 5. Nxf6+ {[%emt 0:00:00]} exf6 {[%emt 0:00:00]} 6. c3 {[%emt 0:00:00]} Bd6 {[%emt 0:00:00]} 7. Bd3 {[%emt 0:00:00]} O-O {[%emt 0:00:00]} 8. Ne2 {[%emt 0:00:00]} Re8 {[%emt 0:00:00]} 9. O-O {[%emt 0:00:00] B15: Caro-Kann: 3 Nc3: 3...g6 and 3...dxe4 4 Nxe4 Nf6 5 Nxf6+ exf6.} Nd7 $1 {[%emt 0:00:00] 9...Nd7 scores better than 9...Qc7.} 10. Ng3 {[%emt 0:00:00]} Nf8 {[%emt 0:00:00]} 11. Re1 {[%emt 0:00:00] White has an edge.} Rxe1+ {[%emt 0:00:00]} 12. Qxe1 {[%emt 0:00:06]} Be6 {[%emt 0:00:00]} 13. Be3 {[%emt 0:11:09]} Qc7 {[%emt 0:02:01] [#]} 14. Kh1 $146 {[%emt 0:03:32]} ({Predecessor:} 14. Qd2 Ng6 15. Qc2 Rd8 16. Rd1 Kh8 17. c4 Ne7 18. Kh1 Bf4 19. Ne2 Bxe3 20. fxe3 {½-½ (77) Szczotka,K (1948)-Mis,M (2365) Poronin 2021}) 14... Re8 {[%emt 0:04:15]} 15. Qd2 {[%emt 0:10:19]} b5 {[%emt 0:14:29]} 16. a4 {[%emt 0:07:23]} Bxg3 {[%emt 0:03:24]} 17. hxg3 {[%emt 0:00:52]} a6 {[%emt 0:01:12]} 18. Qc2 {[%emt 0:04:15]} Qb7 {[%emt 0:04:55]} 19. axb5 {[%emt 0:01:52]} axb5 {[%emt 0:02:02]} 20. b3 {[%emt 0:01:27]} Ra8 {[%emt 0:03:38]} 21. Rxa8 {[%emt 0:01:56]} Qxa8 {[%emt 0:00:05]} 22. c4 {[%emt 0:00:27]} b4 {[%emt 0:04:24]} (22... bxc4 $14 23. bxc4 g6) 23. Qd2 $16 {[%emt 0:05:08]} Qa3 {[%emt 0:03:49]} 24. Bc2 {[%emt 0:00:45]} Ng6 {[%emt 0:04:29]} 25. d5 {[%emt 0:07:11]} cxd5 {[%emt 0:01:25]} 26. cxd5 {[%emt 0:00:07]} Bd7 {[%emt 0:00:26]} 27. Bc5 $1 {[%emt 0:06:15]} Qa1+ {[%emt 0:01:17]} 28. Kh2 {[%emt 0:05:30]} Ne5 {[%emt 0:03:07] ( -> ...Ng4+)} 29. f3 {[%emt 0:01:47] Prevents Ng4+.} (29. Bxb4 $2 {gets mated.} Ng4+ 30. Kh3 Qh1#) 29... Qf1 {[%emt 0:08:25][%cal Oe5f3]} 30. Bd1 {[%emt 0:03:52] A strong pair of Bishops.} h5 {[%emt 0:03:25]} 31. Bxb4 {[%emt 0:02:32]} ({Much less strong is} 31. Be2 Qb1) 31... Bb5 {[%emt 0:03:45] Inhibits Qe2.} 32. Bc3 {[%emt 0:02:24] Threatens to win with Bxe5.} Nd3 {[%emt 0:03:42]} (32... Qd3 $16 33. Qxd3 Bxd3) 33. Qe2 $2 {[%emt 0:03:28]} (33. Be2 $18 {and the rest is easy.} Qf2 34. d6 (34. Bxd3 Qxd2 35. Bxd2 Bxd3 $14)) 33... Qxe2 {[%emt 0:01:02]} (33... Qf2 $142) 34. Bxe2 {[%emt 0:00:07][%mdl 4096] Endgame KBB-KBN} Kf8 {[%emt 0:00:05]} 35. f4 {[%emt 0:01:10]} f5 {[%emt 0:05:04]} 36. Bxh5 {[%emt 0:01:07]} g6 {[%emt 0:00:52]} 37. Bf3 {[%emt 0:01:36]} Ke7 {[%emt 0:01:59]} 38. Be5 {[%emt 0:03:18]} (38. Kh3 $142) 38... f6 {[%emt 0:01:36]} (38... g5 $16 {was called for.} 39. Bb8 gxf4 40. gxf4 Nc1) 39. Bc7 {[%emt 0:01:10]} (39. Bd4 $18) 39... Kd7 {[%emt 0:01:55]} 40. d6 {[%emt 0:01:20]} Nc5 {[%emt 0:01:42]} 41. Bd5 {[%emt 0:17:06]} Ne6 {[%emt 0:16:53]} 42. Kg1 {[%emt 0:00:00]} Nxc7 {[%emt 0:00:00]} (42... g5 $16 {keeps fighting.}) 43. dxc7 $18 {[%emt 0:00:00]} Kxc7 $16 {[%emt 0:00:00] KB-KB} 44. Kf2 {[%emt 0:00:00]} Kd6 {[%emt 0:00:00]} 45. Bf3 {[%emt 0:00:00]} ({Only move:} 45. Bf7 $18) 45... Kc5 $1 $14 {[%emt 0:00:00]} 46. Ke3 {[%emt 0:00:00]} Bf1 {[%emt 0:00:00]} 47. Kd2 {[%emt 0:00:00]} Kd4 {[%emt 0:00:00]} 48. Bc6 {[%emt 0:00:00]} Kc5 {[%emt 0:00:00]} 49. Be8 {[%emt 0:00:00]} g5 {[%emt 0:00:00]} 50. Bg6 {[%emt 0:00:00]} gxf4 {[%emt 0:00:00]} 51. gxf4 {[%emt 0:00:00] Strongly threatening g3.} Bxg2 {[%emt 0:00:00] [#]} 52. Bxf5 {[%emt 0:00:00]} (52. Kc3 $1 $16) 52... Kd4 $11 {[%emt 0:00:00]} 53. Bd7 {[%emt 0:00:00]} Bd5 {[%emt 0:00:00]} 54. b4 {[%emt 0:00:08]} Ke4 $2 {[%emt 0:00:00] [#]} (54... Bc4 $11 {and Black stays safe.}) 55. f5 $2 {[%emt 0:01:10]} ({White has to play} 55. Kc3 $1 $18 {Black must now prevent b5.} Bb7 56. b5) 55... Kd4 {[%emt 0:00:00] The position is equal.} 56. Ke2 {[%emt 0:01:22]} Be4 {[%emt 0:00:00]} 57. Be6 {[%emt 0:01:28]} Bxf5 {[%emt 0:00:00]} 58. Bxf5 {[%emt 0:00:25] Threatening mate with Bd7.} Kc4 {[%emt 0:00:00]} 59. b5 {[%emt 0:00:21] Blacks defense is rewarded with a draw.  Weighted Error Value: White=0.42/Black=0.39} 1/2-1/2

[Event "GER-ch Youth-U14 2022"]
[Site "Willingen"]
[Date "2022.06.08"]
[Round "6.4"]
[White "Möller, Maurin"]
[Black "Besou, Hussain"]
[Result "1/2-1/2"]
[ECO "A45"]
[WhiteElo "1780"]
[BlackElo "2094"]
[Annotator "TA"]
[PlyCount "96"]
[EventDate "2022.06.05"]
[EventType "swiss"]
[EventRounds "9"]
[EventCountry "GER"]
[SourceTitle "playchess.com"]
[Source "ChessBase"]
[SourceQuality "1"]
[TimeControl "40/4500+30:900+30"]

{[%evp 9,96,-5,-4,-4,-4,0,22,-9,12,-8,-9,-17,-6,-27,-8,-18,3,-11,0,0,0,0,0,0,0,0,0,0,0,0,0,0,6,0,14,2,3,0,0,0,0,0,0,0,0,-4,0,-16,-18,-31,-27,-30,-31,-23,-33,-29,0,0,0,0,0,0,0,0,0,0,0,0,0,0,0,0,0,0,0,0,0,0,0,0,0,0,0,0,0,0,0,0,0]} 1. d4 {[%emt 0:00:00]} Nf6 {[%emt 0:00:00]} 2. Bf4 {[%emt 0:00:00]} e6 {[%emt 0:00:00]} 3. e3 {[%emt 0:00:00]} d5 {[%emt 0:00:00]} 4. c3 {[%emt 0:00:00]} Bd6 {[%emt 0:00:00]} 5. Bg3 {[%emt 0:00:00]} O-O {[%emt 0:00:00]} 6. Nd2 {[%emt 0:00:00] D00: 1 d4 d5: Unusual lines.} b6 {[%emt 0:00:00]} 7. Bd3 {[%emt 0:00:00]} c5 {[%emt 0:00:00]} 8. Ngf3 {[%emt 0:00:00]} Ba6 {[%emt 0:00:00]} 9. Qe2 {[%emt 0:00:00]} Bxd3 {[%emt 0:00:00]} 10. Qxd3 {[%emt 0:00:00]} Nc6 {[%emt 0:09:03]} 11. O-O {[%emt 0:00:00]} Rc8 {[%emt 0:01:01]} 12. Rfe1 {[%emt 0:00:00] [#]} Ne7 $146 {[%emt 0:05:36]} ({Predecessor:} 12... cxd4 13. exd4 Bxg3 14. hxg3 Qc7 15. Ne5 Na5 16. g4 Nc4 17. Ndxc4 dxc4 18. Qe2 Nd5 {½-½ (42) Pinch,D (1634)-May,A (1906) Fishguard 2019}) 13. e4 {[%emt 0:02:59] [#] Hoping for Bxd6.} (13. Bxd6 {seems wilder.} Qxd6 14. e4 dxe4 15. Nxe4 Nxe4 16. Qxe4 cxd4 17. Rad1) 13... dxe4 {[%emt 0:00:09]} (13... Bxg3 {looks sharper.} 14. hxg3 cxd4 15. Nxd4 e5) 14. Nxe4 {[%emt 0:00:22]} Nxe4 {[%emt 0:00:25]} (14... Bxg3 {with more complications.} 15. Nxf6+ gxf6 16. hxg3 cxd4 17. Nxd4 e5) 15. Qxe4 {[%emt 0:00:10]} Bxg3 {[%emt 0:05:19]} 16. hxg3 {[%emt 0:00:12]} Qd5 {[%emt 0:00:05]} 17. dxc5 {[%emt 0:03:55]} Qxe4 {[%emt 0:06:24]} 18. Rxe4 {[%emt 0:00:01]} Rxc5 {[%emt 0:00:12]} 19. Ra4 {[%emt 0:03:15]} Rc7 {[%emt 0:02:04]} 20. Rd1 {[%emt 0:00:14]} Rfc8 {[%emt 0:03:13]} 21. Kf1 {[%emt 0:01:26]} f6 {[%emt 0:03:15]} 22. Ke2 {[%emt 0:00:57]} e5 {[%emt 0:00:09] Prevents Nd4.} 23. Ne1 {[%emt 0:01:45]} Kf7 {[%emt 0:01:15]} 24. Nc2 {[%emt 0:00:16]} Rb7 {[%emt 0:13:51]} 25. Ne3 {[%emt 0:03:47]} Ke6 {[%emt 0:06:21]} 26. Rh4 {[%emt 0:15:57]} h6 {[%emt 0:00:59]} 27. a4 {[%emt 0:04:37]} Rbc7 {[%emt 0:04:05]} 28. Rg4 {[%emt 0:01:35]} Nf5 {[%emt 0:01:07]} 29. Rb4 {[%emt 0:03:23]} Nxe3 {[%emt 0:00:11]} 30. Kxe3 {[%emt 0:00:03]} Rc4 {[%emt 0:01:29]} 31. Rxc4 {[%emt 0:00:28]} Rxc4 $15 {[%emt 0:00:06][%mdl 4096] Endgame KR-KR} 32. Ra1 {[%emt 0:00:09]} a5 {[%emt 0:02:00]} 33. Kd3 {[%emt 0:00:20] The position is equal.} Kd5 {[%emt 0:01:08]} 34. b3 {[%emt 0:00:52]} e4+ {[%emt 0:00:33]} 35. Kc2 {[%emt 0:00:05]} Rc7 {[%emt 0:00:07]} 36. Re1 {[%emt 0:00:10]} f5 {[%emt 0:00:19]} 37. Rd1+ {[%emt 0:01:52]} Ke6 {[%emt 0:05:11]} 38. Rd8 {[%emt 0:01:31]} h5 {[%emt 0:02:51]} 39. Re8+ {[%emt 0:01:13]} Kf6 {[%emt 0:00:31]} 40. Rb8 {[%emt 0:00:23]} Rc6 {[%emt 0:00:06]} 41. Kd2 {[%emt 0:15:14]} Rd6+ {[%emt 0:17:01]} 42. Ke2 {[%emt 0:00:17]} g6 {[%emt 0:00:45]} 43. b4 {[%emt 0:03:23]} axb4 {[%emt 0:01:27]} 44. cxb4 {[%emt 0:00:01]} Kg5 {[%emt 0:03:03]} 45. Ke3 {[%emt 0:01:02]} Rd3+ {[%emt 0:01:16]} 46. Ke2 {[%emt 0:00:01]} Ra3 {[%emt 0:00:25]} 47. Rxb6 {[%emt 0:00:07] [#] Black must now prevent a5.} Rxa4 {[%emt 0:00:03]} 48. b5 {[%emt 0:00:22]} Rb4 {[%emt 0:02:17] An interesting draw.  Weighted Error Value: White=0.04 (flawless) /Black=0.04 (flawless)} 1/2-1/2